[Event "Swedish Chess Championship 2021: Mastarklassen-Elit"]
[Site "Scandic Helsingborg Nord, Florettgatan 41, Helsingborg, Sweden"]
[Date "2021.07.03"]
[Round "1.1"]
[White "Sorensen, Hampus"]
[Black "Lindberg, Bengt"]
[Result "1/2-1/2"]
[TimeControl "90 minutes for 40 moves + 30 minutes for the rest of the game + 30 seconds per move from move one."]
[WhiteTitle "FM"]
[BlackTitle "IM"]
[WhiteFideId "8703884"]
[BlackFideId "1700359"]
[WhiteElo "2392"]
[BlackElo "2392"]

1. e4 {[%clk 01:30:39]} {[%emt 00:00:21]} e6 {[%clk 01:29:17]} {[%emt
00:01:43]} 2. d4 {[%clk 01:29:56]} {[%emt 00:01:14]} d5 {[%clk 01:29:19]}
{[%emt 00:00:26]} 3. Nc3 {[%clk 01:28:31]} {[%emt 00:01:56]} dxe4 {[%clk
01:27:28]} {[%emt 00:02:22]} 4. Nxe4 {[%clk 01:28:00]} {[%emt 00:01:00]} Bd7
{[%clk 01:27:44]} {[%emt 00:00:14]} 5. Nf3 {[%clk 01:24:18]} {[%emt 00:04:12]}
Bc6 {[%clk 01:27:59]} {[%emt 00:00:14]} 6. Bd3 {[%clk 01:22:42]} {[%emt
00:02:08]} Nd7 {[%clk 01:27:41]} {[%emt 00:00:47]} 7. O-O {[%clk 01:16:30]}
{[%emt 00:06:42]} Ngf6 {[%clk 01:26:49]} {[%emt 00:01:21]} 8. Ng3 {[%clk
01:16:22]} {[%emt 00:00:39]} Be7 {[%clk 01:26:46]} {[%emt 00:00:32]} 9. c4
{[%clk 01:07:09]} {[%emt 00:09:44]} O-O {[%clk 01:23:43]} {[%emt 00:03:33]} 10.
b3 {[%clk 00:57:53]} {[%emt 00:09:47]} Bxf3 {[%clk 01:21:54]} {[%emt 00:02:19]}
11. Qxf3 {[%clk 00:56:28]} {[%emt 00:01:55]} c6 {[%clk 01:22:11]} {[%emt
00:00:13]} 12. Bb2 {[%clk 00:54:47]} {[%emt 00:02:11]} a5 {[%clk 01:18:17]}
{[%emt 00:04:24]} 13. Rad1 {[%clk 00:52:50]} {[%emt 00:02:28]} a4 {[%clk
01:16:58]} {[%emt 00:01:49]} 14. Bb1 {[%clk 00:50:34]} {[%emt 00:02:46]} axb3
{[%clk 01:14:35]} {[%emt 00:02:52]} 15. axb3 {[%clk 00:49:19]} {[%emt
00:01:46]} Re8 {[%clk 01:08:19]} {[%emt 00:06:45]} 16. h4 {[%clk 00:46:06]}
{[%emt 00:03:43]} Ba3 {[%clk 00:54:46]} {[%emt 00:14:03]} 17. Bc3 {[%clk
00:42:39]} {[%emt 00:03:58]} Qb6 {[%clk 00:54:14]} {[%emt 00:01:00]} 18. Bc2
{[%clk 00:37:52]} {[%emt 00:05:18]} Bf8 {[%clk 00:53:55]} {[%emt 00:00:49]} 19.
h5 {[%clk 00:36:18]} {[%emt 00:02:05]} h6 {[%clk 00:37:18]} {[%emt 00:17:07]}
20. Ra1 {[%clk 00:28:50]} {[%emt 00:07:58]} Rxa1 {[%clk 00:31:26]} {[%emt
00:06:22]} 21. Rxa1 {[%clk 00:28:15]} {[%emt 00:01:06]} Qc7 {[%clk 00:29:38]}
{[%emt 00:02:16]} 22. Re1 {[%clk 00:25:21]} {[%emt 00:03:25]} Ra8 {[%clk
00:24:48]} {[%emt 00:05:19]} 23. Ne4 {[%clk 00:21:53]} {[%emt 00:03:59]} Be7
{[%clk 00:19:35]} {[%emt 00:05:42]} 24. g3 {[%clk 00:16:49]} {[%emt 00:05:36]}
Nxe4 {[%clk 00:17:07]} {[%emt 00:02:58]} 25. Qxe4 {[%clk 00:13:07]} {[%emt
00:04:12]} Nf6 {[%clk 00:17:02]} {[%emt 00:00:35]} 26. Qd3 {[%clk 00:09:44]}
{[%emt 00:03:54]} Kf8 {[%clk 00:17:04]} {[%emt 00:00:27]} 27. Re3 {[%clk
00:07:10]} {[%emt 00:03:06]} Rd8 {[%clk 00:14:26]} {[%emt 00:03:07]} 28. Qe2
{[%clk 00:06:03]} {[%emt 00:01:37]} b5 {[%clk 00:13:02]} {[%emt 00:01:54]} 29.
Rf3 {[%clk 00:05:08]} {[%emt 00:01:25]} bxc4 {[%clk 00:10:57]} {[%emt
00:02:36]} 30. bxc4 {[%clk 00:05:36]} {[%emt 00:00:02]} Qb7 {[%clk 00:07:53]}
{[%emt 00:03:33]} 31. Rd3 {[%clk 00:04:11]} {[%emt 00:01:56]} Ra8 {[%clk
00:06:42]} {[%emt 00:01:40]} 32. Rd1 {[%clk 00:02:09]} {[%emt 00:02:32]}
1/2-1/2

[Event "Swedish Chess Championship 2021: Mastarklassen-Elit"]
[Site "Scandic Helsingborg Nord, Florettgatan 41, Helsingborg, Sweden"]
[Date "2021.07.03"]
[Round "1.2"]
[White "Bellon Lopez, Juan Manuel"]
[Black "Johansson, Thomas"]
[Result "1/2-1/2"]
[TimeControl "90 minutes for 40 moves + 30 minutes for the rest of the game + 30 seconds per move from move one."]
[WhiteTitle "GM"]
[WhiteFideId "2200031"]
[BlackFideId "1702998"]
[WhiteElo "2327"]
[BlackElo "2254"]

1. b3 {[%clk 01:30:42]} {[%emt 00:00:17]} d6 {[%clk 01:27:47]} {[%emt
00:03:14]} 2. Bb2 {[%clk 01:30:40]} {[%emt 00:00:32]} Nd7 {[%clk 01:28:02]}
{[%emt 00:00:15]} 3. c4 {[%clk 01:27:56]} {[%emt 00:03:14]} Ngf6 {[%clk
01:27:24]} {[%emt 00:01:08]} 4. g3 {[%clk 01:27:09]} {[%emt 00:01:16]} c5
{[%clk 01:21:07]} {[%emt 00:06:47]} 5. Bg2 {[%clk 01:17:15]} {[%emt 00:10:24]}
g6 {[%clk 01:09:20]} {[%emt 00:12:17]} 6. e3 {[%clk 01:13:19]} {[%emt
00:04:25]} Bg7 {[%clk 01:09:21]} {[%emt 00:00:29]} 7. Ne2 {[%clk 01:10:51]}
{[%emt 00:02:58]} Rb8 {[%clk 01:07:14]} {[%emt 00:02:38]} 8. d4 {[%clk
01:02:50]} {[%emt 00:08:30]} O-O {[%clk 00:59:39]} {[%emt 00:08:06]} 9. O-O
{[%clk 01:01:01]} {[%emt 00:02:19]} a6 {[%clk 00:56:47]} {[%emt 00:03:23]} 10.
a4 {[%clk 00:50:36]} {[%emt 00:10:55]} cxd4 {[%clk 00:52:49]} {[%emt 00:04:28]}
11. Nxd4 {[%clk 00:47:09]} {[%emt 00:03:56]} Nc5 {[%clk 00:51:50]} {[%emt
00:01:29]} 12. b4 {[%clk 00:39:18]} {[%emt 00:08:21]} Ncd7 {[%clk 00:49:02]}
{[%emt 00:03:18]} 13. a5 {[%clk 00:35:59]} {[%emt 00:03:50]} Ne5 {[%clk
00:48:06]} {[%emt 00:01:26]} 14. Qb3 {[%clk 00:33:23]} {[%emt 00:03:06]} Bd7
{[%clk 00:46:24]} {[%emt 00:02:12]} 15. f4 {[%clk 00:29:03]} {[%emt 00:04:49]}
Nc6 {[%clk 00:45:36]} {[%emt 00:01:18]} 16. Nd2 {[%clk 00:25:48]} {[%emt
00:03:46]} e5 {[%clk 00:38:25]} {[%emt 00:07:42]} 17. Nxc6 {[%clk 00:21:20]}
{[%emt 00:04:57]} Bxc6 {[%clk 00:38:26]} {[%emt 00:00:28]} 18. Bxc6 {[%clk
00:16:47]} {[%emt 00:05:04]} bxc6 {[%clk 00:38:41]} {[%emt 00:00:14]} 19. fxe5
{[%clk 00:14:48]} {[%emt 00:02:29]} dxe5 {[%clk 00:38:56]} {[%emt 00:00:15]} 20.
Nf3 {[%clk 00:14:14]} {[%emt 00:01:04]} Nd7 {[%clk 00:38:13]} {[%emt 00:01:13]}
21. Qc3 {[%clk 00:11:52]} {[%emt 00:02:52]} Re8 {[%clk 00:34:48]} {[%emt
00:03:55]} 22. Rad1 {[%clk 00:11:22]} {[%emt 00:01:00]} Qe7 {[%clk 00:34:06]}
{[%emt 00:01:12]} 23. c5 {[%clk 00:11:37]} {[%emt 00:00:16]} Nf6 {[%clk
00:25:41]} {[%emt 00:08:54]} 24. Qxe5 {[%clk 00:08:59]} {[%emt 00:03:08]} Qb7
{[%clk 00:23:01]} {[%emt 00:03:10]} 25. Qc3 {[%clk 00:09:14]} {[%emt 00:00:16]}
Nh5 {[%clk 00:18:47]} {[%emt 00:04:44]} 26. Qb3 {[%clk 00:06:48]} {[%emt
00:02:56]} Bxb2 {[%clk 00:17:18]} {[%emt 00:01:59]} 27. Qxb2 {[%clk 00:07:04]}
{[%emt 00:00:14]} Qxb4 {[%clk 00:17:21]} {[%emt 00:00:27]} 28. Qxb4 {[%clk
00:07:24]} {[%emt 00:00:10]} Rxb4 {[%clk 00:17:44]} {[%emt 00:00:06]} 29. Rd6
{[%clk 00:06:51]} {[%emt 00:01:02]} Rb5 {[%clk 00:15:05]} {[%emt 00:03:10]} 30.
Rxc6 {[%clk 00:07:08]} {[%emt 00:00:14]} Rxa5 {[%clk 00:15:26]} {[%emt
00:00:08]} 31. g4 {[%clk 00:04:11]} {[%emt 00:03:27]} Ng7 {[%clk 00:15:12]}
{[%emt 00:00:44]} 32. Ng5 {[%clk 00:04:18]} {[%emt 00:00:23]} f5 {[%clk
00:12:46]} {[%emt 00:02:56]} 33. gxf5 {[%clk 00:04:25]} {[%emt 00:00:24]} Nxf5
{[%clk 00:12:36]} {[%emt 00:00:39]} 34. e4 {[%clk 00:04:41]} {[%emt 00:00:13]}
Ne3 {[%clk 00:08:36]} {[%emt 00:04:30]} 35. Re1 {[%clk 00:03:29]} {[%emt
00:01:42]} Ng4 {[%clk 00:08:29]} {[%emt 00:00:37]} 36. Rc7 {[%clk 00:03:07]}
{[%emt 00:00:52]} Ne5 {[%clk 00:04:01]} {[%emt 00:04:57]} 37. Nxh7 {[%clk
00:00:51]} {[%emt 00:02:46]} Nf3+ {[%clk 00:04:12]} {[%emt 00:00:19]} 38. Kf2
{[%clk 00:01:15]} {[%emt 00:00:06]} Nxe1 {[%clk 00:04:30]} {[%emt 00:00:13]} 39.
Nf6+ {[%clk 00:01:42]} {[%emt 00:00:04]} Kf8 {[%clk 00:04:49]} {[%emt
00:00:11]} 40. Nh7+ {[%clk 00:02:06]} {[%emt 00:00:06]} Kg8 {[%clk 00:05:14]}
{[%emt 00:00:05]} 41. Nf6+ {[%clk 00:02:32]} {[%emt 00:00:04]} Kf8 {[%clk
00:05:38]} {[%emt 00:00:05]} 42. Nxe8 {[%clk 00:23:40]} {[%emt 00:09:23]} Nd3+
{[%clk 00:32:17]} {[%emt 00:03:51]} 43. Ke3 {[%clk 00:21:26]} {[%emt 00:02:44]}
Nxc5 {[%clk 00:31:37]} {[%emt 00:01:11]} 44. Ng7 {[%clk 00:20:35]} {[%emt
00:01:20]} Kg8 {[%clk 00:29:53]} {[%emt 00:02:14]} 45. e5 {[%clk 00:18:23]}
{[%emt 00:02:42]} Ne6 {[%clk 00:28:51]} {[%emt 00:01:31]} 46. Nxe6 {[%clk
00:18:47]} {[%emt 00:00:06]} Rxe5+ {[%clk 00:29:14]} {[%emt 00:00:07]} 47. Kf4
{[%clk 00:19:12]} {[%emt 00:00:04]} Rxe6 {[%clk 00:29:37]} {[%emt 00:00:07]} 48.
Kg5 {[%clk 00:19:40]} {[%emt 00:00:02]} Kf8 {[%clk 00:29:27]} {[%emt 00:00:40]}
49. h4 {[%clk 00:20:05]} {[%emt 00:00:06]} Rb6 {[%clk 00:25:24]} {[%emt
00:04:33]} 1/2-1/2

[Event "Swedish Chess Championship 2021: Mastarklassen-Elit"]
[Site "Scandic Helsingborg Nord, Florettgatan 41, Helsingborg, Sweden"]
[Date "2021.07.03"]
[Round "1.3"]
[White "Thorn, Eric"]
[Black "Zadruzny, Nicolaj"]
[Result "1/2-1/2"]
[TimeControl "90 minutes for 40 moves + 30 minutes for the rest of the game + 30 seconds per move from move one."]
[WhiteTitle "FM"]
[BlackTitle "FM"]
[WhiteFideId "1710729"]
[BlackFideId "1709550"]
[WhiteElo "2271"]
[BlackElo "2333"]

1. d4 {[%clk 01:30:56]} {[%emt 00:00:03]} Nf6 {[%clk 01:30:50]} {[%emt
00:00:10]} 2. c4 {[%clk 01:31:21]} {[%emt 00:00:06]} e6 {[%clk 01:31:13]}
{[%emt 00:00:07]} 3. Nf3 {[%clk 01:31:46]} {[%emt 00:00:05]} d5 {[%clk
01:31:35]} {[%emt 00:00:08]} 4. Nc3 {[%clk 01:32:11]} {[%emt 00:00:06]} Bb4
{[%clk 01:31:47]} {[%emt 00:00:17]} 5. Bg5 {[%clk 01:32:10]} {[%emt 00:00:31]}
h6 {[%clk 01:32:00]} {[%emt 00:00:17]} 6. Bxf6 {[%clk 01:31:49]} {[%emt
00:00:51]} Qxf6 {[%clk 01:32:23]} {[%emt 00:00:07]} 7. Qa4+ {[%clk 01:31:38]}
{[%emt 00:00:41]} Nc6 {[%clk 01:32:37]} {[%emt 00:00:16]} 8. e3 {[%clk
01:31:25]} {[%emt 00:00:42]} O-O {[%clk 01:31:15]} {[%emt 00:01:52]} 9. Be2
{[%clk 01:27:58]} {[%emt 00:03:58]} dxc4 {[%clk 01:29:27]} {[%emt 00:02:18]} 10.
O-O {[%clk 01:08:06]} {[%emt 00:20:21]} Qe7 {[%clk 01:07:00]} {[%emt 00:22:56]}
11. Bxc4 {[%clk 01:02:32]} {[%emt 00:06:05]} Na5 {[%clk 01:05:20]} {[%emt
00:02:10]} 12. Bd3 {[%clk 00:58:44]} {[%emt 00:04:17]} Bxc3 {[%clk 00:51:34]}
{[%emt 00:14:16]} 13. bxc3 {[%clk 00:59:06]} {[%emt 00:00:08]} b6 {[%clk
00:51:59]} {[%emt 00:00:05]} 14. Be4 {[%clk 00:53:55]} {[%emt 00:05:41]} Bb7
{[%clk 00:51:24]} {[%emt 00:01:06]} 15. Bxb7 {[%clk 00:53:45]} {[%emt
00:00:40]} Nxb7 {[%clk 00:51:50]} {[%emt 00:00:04]} 16. Ne5 {[%clk 00:50:55]}
{[%emt 00:03:19]} c5 {[%clk 00:50:20]} {[%emt 00:02:00]} 17. Rfd1 {[%clk
00:36:18]} {[%emt 00:15:06]} Qc7 {[%clk 00:34:46]} {[%emt 00:16:05]} 18. Rac1
{[%clk 00:30:42]} {[%emt 00:06:05]} Rfd8 {[%clk 00:28:14]} {[%emt 00:07:02]} 19.
h3 {[%clk 00:23:37]} {[%emt 00:07:35]} Rac8 {[%clk 00:27:08]} {[%emt 00:01:36]}
20. Qa6 {[%clk 00:17:03]} {[%emt 00:07:04]} Na5 {[%clk 00:19:53]} {[%emt
00:07:44]} 21. Nd3 {[%clk 00:16:43]} {[%emt 00:00:50]} Rd6 {[%clk 00:15:51]}
{[%emt 00:04:33]} 22. Qb5 {[%clk 00:14:16]} {[%emt 00:02:56]} cxd4 {[%clk
00:10:55]} {[%emt 00:05:27]} 23. cxd4 {[%clk 00:14:01]} {[%emt 00:00:45]} Rc6
{[%clk 00:11:19]} {[%emt 00:00:06]} 24. Qa6 {[%clk 00:11:37]} {[%emt 00:02:54]}
Qb7 {[%clk 00:09:56]} {[%emt 00:01:53]} 25. Qxb7 {[%clk 00:08:43]} {[%emt
00:03:24]} Nxb7 {[%clk 00:10:21]} {[%emt 00:00:05]} 26. Kf1 {[%clk 00:08:11]}
{[%emt 00:01:02]} Kf8 {[%clk 00:07:06]} {[%emt 00:03:45]} 27. Ke2 {[%clk
00:04:53]} {[%emt 00:03:47]} Ke7 {[%clk 00:05:55]} {[%emt 00:01:41]} 28. Rxc6
{[%clk 00:04:08]} {[%emt 00:01:16]} Rxc6 {[%clk 00:06:22]} {[%emt 00:00:03]} 29.
Ne5 {[%clk 00:04:24]} {[%emt 00:00:14]} Rc7 {[%clk 00:06:18]} {[%emt 00:00:34]}
30. Kd3 {[%clk 00:02:39]} {[%emt 00:02:15]} Nd8 {[%clk 00:03:27]} {[%emt
00:03:21]} 31. Rb1 {[%clk 00:01:22]} {[%emt 00:01:47]} Nc6 {[%clk 00:02:18]}
{[%emt 00:01:39]} 32. Nxc6+ {[%clk 00:00:42]} {[%emt 00:01:11]} Rxc6 {[%clk
00:02:38]} {[%emt 00:00:10]} 1/2-1/2

[Event "Swedish Chess Championship 2021: Mastarklassen-Elit"]
[Site "Scandic Helsingborg Nord, Florettgatan 41, Helsingborg, Sweden"]
[Date "2021.07.03"]
[Round "1.4"]
[White "Jogstad, Martin"]
[Black "Furhoff, Johan"]
[Result "1/2-1/2"]
[TimeControl "90 minutes for 40 moves + 30 minutes for the rest of the game + 30 seconds per move from move one."]
[WhiteTitle "FM"]
[BlackTitle "IM"]
[WhiteFideId "1715364"]
[BlackFideId "1701797"]
[WhiteElo "2301"]
[BlackElo "2324"]

1. c4 {[%clk 01:30:46]} {[%emt 00:00:12]} e5 {[%clk 01:30:25]} {[%emt
00:00:37]} 2. g3 {[%clk 01:30:47]} {[%emt 00:00:29]} Nc6 {[%clk 01:30:33]}
{[%emt 00:00:22]} 3. Bg2 {[%clk 01:30:53]} {[%emt 00:00:23]} f5 {[%clk
01:30:07]} {[%emt 00:00:57]} 4. Nc3 {[%clk 01:30:36]} {[%emt 00:00:46]} Nf6
{[%clk 01:29:37]} {[%emt 00:01:01]} 5. e3 {[%clk 01:30:44]} {[%emt 00:00:21]}
g6 {[%clk 01:24:43]} {[%emt 00:05:25]} 6. d4 {[%clk 01:31:03]} {[%emt
00:00:11]} e4 {[%clk 01:24:37]} {[%emt 00:00:36]} 7. Nge2 {[%clk 01:31:14]}
{[%emt 00:00:19]} Bg7 {[%clk 01:24:42]} {[%emt 00:00:25]} 8. Nf4 {[%clk
01:31:26]} {[%emt 00:00:18]} O-O {[%clk 01:23:36]} {[%emt 00:01:37]} 9. h4
{[%clk 01:31:48]} {[%emt 00:00:07]} d6 {[%clk 01:20:34]} {[%emt 00:03:32]} 10.
b3 {[%clk 01:31:28]} {[%emt 00:00:50]} a6 {[%clk 01:17:58]} {[%emt 00:03:07]}
11. Bb2 {[%clk 01:31:33]} {[%emt 00:00:25]} Rb8 {[%clk 01:17:52]} {[%emt
00:00:36]} 12. Bf1 {[%clk 01:31:54]} {[%emt 00:00:09]} Re8 {[%clk 01:00:55]}
{[%emt 00:17:27]} 13. Be2 {[%clk 01:31:27]} {[%emt 00:00:55]} Ne7 {[%clk
00:49:46]} {[%emt 00:11:41]} 14. Qd2 {[%clk 01:29:57]} {[%emt 00:02:00]} Bd7
{[%clk 00:47:28]} {[%emt 00:02:47]} 15. a4 {[%clk 01:28:52]} {[%emt 00:01:35]}
c6 {[%clk 00:39:42]} {[%emt 00:08:16]} 16. a5 {[%clk 01:21:22]} {[%emt
00:08:00]} h6 {[%clk 00:32:34]} {[%emt 00:07:39]} 17. d5 {[%clk 01:09:58]}
{[%emt 00:11:54]} cxd5 {[%clk 00:29:48]} {[%emt 00:03:15]} 18. Ncxd5 {[%clk
01:04:23]} {[%emt 00:06:04]} Nexd5 {[%clk 00:26:35]} {[%emt 00:03:42]} 19. Nxd5
{[%clk 00:48:26]} {[%emt 00:16:29]} Nxd5 {[%clk 00:23:42]} {[%emt 00:03:23]} 20.
Qxd5+ {[%clk 00:48:23]} {[%emt 00:00:33]} Be6 {[%clk 00:20:54]} {[%emt
00:03:18]} 21. Qd2 {[%clk 00:48:42]} {[%emt 00:00:12]} d5 {[%clk 00:18:40]}
{[%emt 00:02:44]} 22. Bxg7 {[%clk 00:44:56]} {[%emt 00:04:15]} Kxg7 {[%clk
00:19:03]} {[%emt 00:00:07]} 23. cxd5 {[%clk 00:41:01]} {[%emt 00:04:25]} Qxd5
{[%clk 00:18:20]} {[%emt 00:01:14]} 24. Qc3+ {[%clk 00:40:45]} {[%emt
00:00:46]} Kf7 {[%clk 00:17:23]} {[%emt 00:01:27]} 25. h5 {[%clk 00:38:22]}
{[%emt 00:02:53]} g5 {[%clk 00:12:56]} {[%emt 00:04:57]} 26. Rd1 {[%clk
00:23:09]} {[%emt 00:15:42]} Qc6 {[%clk 00:12:51]} {[%emt 00:00:35]} 27. Qe5
{[%clk 00:18:18]} {[%emt 00:05:21]} Rbd8 {[%clk 00:12:54]} {[%emt 00:00:28]} 28.
O-O {[%clk 00:11:57]} {[%emt 00:06:51]} Rd5 {[%clk 00:12:29]} {[%emt 00:00:55]}
29. Rxd5 {[%clk 00:11:53]} {[%emt 00:00:34]} Qxd5 {[%clk 00:12:05]} {[%emt
00:00:54]} 30. Qc7+ {[%clk 00:12:11]} {[%emt 00:00:12]} Re7 {[%clk 00:11:50]}
{[%emt 00:00:45]} 31. Qc3 {[%clk 00:12:31]} {[%emt 00:00:10]} Qc6 {[%clk
00:09:24]} {[%emt 00:02:56]} 32. Qh8 {[%clk 00:10:09]} {[%emt 00:02:50]} Bxb3
{[%clk 00:08:10]} {[%emt 00:01:45]} 33. Rb1 {[%clk 00:07:28]} {[%emt 00:03:11]}
Qe6 {[%clk 00:07:07]} {[%emt 00:01:33]} 34. Bd1 {[%clk 00:06:51]} {[%emt
00:01:08]} Bxd1 {[%clk 00:04:58]} {[%emt 00:02:38]} 35. Rxd1 {[%clk 00:03:59]}
{[%emt 00:03:21]} Qf6 {[%clk 00:04:14]} {[%emt 00:01:14]} 36. Qh7+ {[%clk
00:04:08]} {[%emt 00:00:20]} Ke6 {[%clk 00:03:36]} {[%emt 00:01:10]} 37. Qg8+
{[%clk 00:04:02]} {[%emt 00:00:35]} Qf7 {[%clk 00:03:39]} {[%emt 00:00:28]} 38.
Qc8+ {[%clk 00:02:40]} {[%emt 00:01:52]} Rd7 {[%clk 00:03:24]} {[%emt
00:00:45]} 39. Rb1 {[%clk 00:01:46]} {[%emt 00:01:24]} Qxh5 {[%clk 00:02:39]}
{[%emt 00:01:15]} 40. Rb6+ {[%clk 00:00:43]} {[%emt 00:01:33]} Ke7 {[%clk
00:02:01]} {[%emt 00:01:08]} 41. Qc5+ {[%clk 00:29:30]} {[%emt 00:01:42]} Kd8
{[%clk 00:29:22]} {[%emt 00:03:10]} 42. Rd6 {[%clk 00:21:15]} {[%emt 00:08:44]}
Rxd6 {[%clk 00:24:53]} {[%emt 00:05:00]} 43. Qxd6+ {[%clk 00:20:19]} {[%emt
00:01:26]} Kc8 {[%clk 00:24:53]} {[%emt 00:00:29]} 44. Qc5+ {[%clk 00:19:58]}
{[%emt 00:00:51]} Kb8 {[%clk 00:23:28]} {[%emt 00:01:55]} 45. Qf8+ {[%clk
00:19:27]} {[%emt 00:01:00]} Ka7 {[%clk 00:23:32]} {[%emt 00:00:27]} 46. Qc5+
{[%clk 00:19:45]} {[%emt 00:00:11]} Kb8 {[%clk 00:23:46]} {[%emt 00:00:17]} 47.
Qf8+ {[%clk 00:20:10]} {[%emt 00:00:05]} Ka7 {[%clk 00:24:09]} {[%emt
00:00:07]} 48. Qc5+ {[%clk 00:20:34]} {[%emt 00:00:05]} Kb8 {[%clk 00:24:29]}
{[%emt 00:00:11]} 1/2-1/2

[Event "Swedish Chess Championship 2021: Mastarklassen-Elit"]
[Site "Scandic Helsingborg Nord, Florettgatan 41, Helsingborg, Sweden"]
[Date "2021.07.03"]
[Round "1.5"]
[White "Nikolic, Vladan"]
[Black "Ernst, Thomas"]
[Result "0-1"]
[TimeControl "90 minutes for 40 moves + 30 minutes for the rest of the game + 30 seconds per move from move one."]
[BlackTitle "GM"]
[WhiteFideId "1710702"]
[BlackFideId "1700065"]
[WhiteElo "2222"]
[BlackElo "2310"]

1. d4 {[%clk 01:30:47]} {[%emt 00:00:12]} Nf6 {[%clk 01:30:07]} {[%emt
00:00:54]} 2. c4 {[%clk 01:31:03]} {[%emt 00:00:14]} e6 {[%clk 01:30:00]}
{[%emt 00:00:37]} 3. g3 {[%clk 01:30:53]} {[%emt 00:00:41]} c5 {[%clk
01:29:43]} {[%emt 00:00:47]} 4. d5 {[%clk 01:31:02]} {[%emt 00:00:20]} exd5
{[%clk 01:30:02]} {[%emt 00:00:11]} 5. cxd5 {[%clk 01:31:26]} {[%emt 00:00:06]}
d6 {[%clk 01:30:25]} {[%emt 00:00:08]} 6. Nc3 {[%clk 01:29:19]} {[%emt
00:02:37]} g6 {[%clk 01:30:41]} {[%emt 00:00:13]} 7. Bg2 {[%clk 01:29:35]}
{[%emt 00:00:14]} Bg7 {[%clk 01:30:54]} {[%emt 00:00:17]} 8. Nf3 {[%clk
01:29:33]} {[%emt 00:00:32]} O-O {[%clk 01:31:09]} {[%emt 00:00:16]} 9. O-O
{[%clk 01:29:02]} {[%emt 00:00:59]} Re8 {[%clk 01:31:32]} {[%emt 00:00:09]} 10.
Bf4 {[%clk 01:24:36]} {[%emt 00:04:56]} Nh5 {[%clk 01:30:20]} {[%emt 00:01:42]}
11. Bg5 {[%clk 01:23:48]} {[%emt 00:01:18]} Qb6 {[%clk 01:28:59]} {[%emt
00:01:49]} 12. Qc1 {[%clk 01:18:16]} {[%emt 00:06:04]} Na6 {[%clk 01:21:50]}
{[%emt 00:07:39]} 13. Re1 {[%clk 01:06:24]} {[%emt 00:12:22]} Bd7 {[%clk
01:16:07]} {[%emt 00:06:13]} 14. h3 {[%clk 00:59:48]} {[%emt 00:07:07]} Nc7
{[%clk 01:06:23]} {[%emt 00:10:14]} 15. e4 {[%clk 00:53:47]} {[%emt 00:06:31]}
Nf6 {[%clk 01:00:29]} {[%emt 00:06:25]} 16. Qf4 {[%clk 00:39:34]} {[%emt
00:14:43]} Nh5 {[%clk 01:00:37]} {[%emt 00:00:21]} 17. Qd2 {[%clk 00:37:24]}
{[%emt 00:02:41]} f6 {[%clk 00:54:51]} {[%emt 00:06:17]} 18. Be3 {[%clk
00:36:01]} {[%emt 00:01:52]} f5 {[%clk 00:54:54]} {[%emt 00:00:28]} 19. exf5
{[%clk 00:33:17]} {[%emt 00:03:14]} gxf5 {[%clk 00:55:01]} {[%emt 00:00:22]} 20.
Bh6 {[%clk 00:29:01]} {[%emt 00:04:46]} Rxe1+ {[%clk 00:54:34]} {[%emt
00:00:57]} 21. Rxe1 {[%clk 00:29:20]} {[%emt 00:00:10]} Re8 {[%clk 00:54:56]}
{[%emt 00:00:08]} 22. Rb1 {[%clk 00:19:49]} {[%emt 00:10:01]} Bxc3 {[%clk
00:49:37]} {[%emt 00:05:49]} 23. Qxc3 {[%clk 00:19:39]} {[%emt 00:00:41]} Nxd5
{[%clk 00:50:01]} {[%emt 00:00:06]} 24. Qc4 {[%clk 00:17:07]} {[%emt 00:03:02]}
Nhf6 {[%clk 00:49:48]} {[%emt 00:00:42]} 25. Ng5 {[%clk 00:13:41]} {[%emt
00:03:56]} Bc6 {[%clk 00:50:03]} {[%emt 00:00:15]} 26. Qd3 {[%clk 00:09:32]}
{[%emt 00:04:39]} Re5 {[%clk 00:48:09]} {[%emt 00:02:23]} 27. Nf3 {[%clk
00:06:25]} {[%emt 00:03:38]} Re4 {[%clk 00:47:50]} {[%emt 00:00:49]} 28. Nd2
{[%clk 00:03:59]} {[%emt 00:02:57]} Bb5 {[%clk 00:47:20]} {[%emt 00:00:59]} 29.
Qc2 {[%clk 00:02:12]} {[%emt 00:02:17]} Re5 {[%clk 00:40:59]} {[%emt 00:06:51]}
30. a3 {[%clk 00:00:41]} {[%emt 00:02:03]} Qa6 {[%clk 00:39:19]} {[%emt
00:02:09]} 31. Rc1 {[%clk 00:00:32]} {[%emt 00:00:40]} Qa4 {[%clk 00:37:44]}
{[%emt 00:02:04]} 32. b3 {[%clk 00:00:32]} {[%emt 00:00:31]} Qxa3 {[%clk
00:37:39]} {[%emt 00:00:34]} 33. Nf3 {[%clk 00:00:33]} {[%emt 00:00:29]} Re4
{[%clk 00:35:25]} {[%emt 00:02:43]} 34. Qd2 {[%clk 00:00:32]} {[%emt 00:00:31]}
f4 {[%clk 00:33:04]} {[%emt 00:02:51]} 35. Ng5 {[%clk 00:00:41]} {[%emt
00:00:22]} Rd4 {[%clk 00:32:37]} {[%emt 00:00:56]} 36. Qe1 {[%clk 00:01:09]}
{[%emt 00:00:02]} Bd7 {[%emt 00:01:24]} 37. Qf1 {[%clk 00:30:30]} 0-1